[Event "*** Titled Tuesday Blitz"]
[Site "Chess.com"]
[Date "2021.02.16"]
[Round "10"]
[White "L1m96"]
[Black "MergenKakabaev"]
[Result "1-0"]
[WhiteElo "2542"]
[BlackElo "2394"]
[TimeControl "180+1"]
[EndTime "12:00:30 PST"]
[Termination "L1m96 won on time"]

1. e4 {[%clk 0:03:00.9]} 1... e5 {[%clk 0:02:58.5]} 2. Nf3 {[%clk 0:03:00.9]}
2... Nc6 {[%clk 0:02:58.2]} 3. Bb5 {[%clk 0:03:01.2]} 3... a6 {[%clk 0:02:57.3]}
4. Ba4 {[%clk 0:03:01.8]} 4... Nf6 {[%clk 0:02:55]} 5. O-O {[%clk 0:03:01.6]}
5... Be7 {[%clk 0:02:55.2]} 6. Re1 {[%clk 0:03:02.1]} 6... b5 {[%clk 0:02:54.8]}
7. Bb3 {[%clk 0:03:02.7]} 7... d6 {[%clk 0:02:55.2]} 8. h3 {[%clk 0:03:02.7]}
8... O-O {[%clk 0:02:54.7]} 9. c3 {[%clk 0:03:02.8]} 9... Na5 {[%clk 0:02:54.5]}
10. Bc2 {[%clk 0:03:03.1]} 10... c5 {[%clk 0:02:54.6]} 11. d3 {[%clk 0:03:02.2]}
11... Qc7 {[%clk 0:02:54.4]} 12. Nbd2 {[%clk 0:03:02.8]} 12... Bd7 {[%clk
0:02:46.5]} 13. Nf1 {[%clk 0:03:01.4]} 13... b4 {[%clk 0:02:46.3]} 14. Ng3
{[%clk 0:02:58.8]} 14... Rfb8 {[%clk 0:02:44.5]} 15. Bg5 {[%clk 0:02:25.4]}
15... Be6 {[%clk 0:02:36.7]} 16. Nh4 {[%clk 0:02:14.9]} 16... Nc6 {[%clk
0:02:16.2]} 17. Nhf5 {[%clk 0:02:10.6]} 17... Bd8 {[%clk 0:02:15.9]} 18. Qf3
{[%clk 0:02:03.7]} 18... Ne8 {[%clk 0:02:03.9]} 19. Bc1 {[%clk 0:01:52.4]} 19...
bxc3 {[%clk 0:02:01]} 20. bxc3 {[%clk 0:01:53.3]} 20... a5 {[%clk 0:01:47.1]}
21. Ne3 {[%clk 0:01:16]} 21... a4 {[%clk 0:01:32.3]} 22. Nd5 {[%clk 0:01:14.6]}
22... Qd7 {[%clk 0:01:30.5]} 23. Ba3 {[%clk 0:01:03.2]} 23... Ne7 {[%clk
0:01:18.8]} 24. Rab1 {[%clk 0:00:53.5]} 24... f6 {[%clk 0:01:11]} 25. Nf1 {[%clk
0:00:40.8]} 25... Nxd5 {[%clk 0:01:10.4]} 26. exd5 {[%clk 0:00:41.7]} 26... Bf7
{[%clk 0:01:08.2]} 27. Ne3 {[%clk 0:00:42.2]} 27... Ba5 {[%clk 0:01:06.2]} 28.
Nd1 {[%clk 0:00:15.3]} 28... Nc7 {[%clk 0:01:03.8]} 29. Rxb8+ {[%clk 0:00:11.1]}
29... Rxb8 {[%clk 0:01:03.5]} 30. Qe4 {[%clk 0:00:11.1]} 30... Bxd5 {[%clk
0:00:50.8]} 31. Qxa4 {[%clk 0:00:10.7]} 31... Qxa4 {[%clk 0:00:50]} 32. Bxa4
{[%clk 0:00:11.6]} 32... Bxa2 {[%clk 0:00:50.1]} 33. Re2 {[%clk 0:00:11.7]}
33... Bf7 {[%clk 0:00:46.3]} 34. d4 {[%clk 0:00:12.1]} 34... Bc4 {[%clk
0:00:25.8]} 35. Rb2 {[%clk 0:00:04.6]} 35... Rxb2 {[%clk 0:00:22]} 36. Nxb2
{[%clk 0:00:05.5]} 36... Bb5 {[%clk 0:00:20.8]} 37. Bb3+ {[%clk 0:00:03.9]}
37... Kh8 {[%clk 0:00:13.6]} 38. dxc5 {[%clk 0:00:04.4]} 38... dxc5 {[%clk
0:00:13.4]} 39. c4 {[%clk 0:00:05.1]} 39... Bc6 {[%clk 0:00:12.8]} 40. Bxc5
{[%clk 0:00:05.5]} 40... Na6 {[%clk 0:00:11.4]} 41. Be3 {[%clk 0:00:04.9]} 41...
Bb4 {[%clk 0:00:11.6]} 42. Ba4 {[%clk 0:00:04.7]} 42... Be4 {[%clk 0:00:10.2]}
43. Bb5 {[%clk 0:00:03.7]} 43... Nc5 {[%clk 0:00:09.7]} 44. Na4 {[%clk
0:00:04.6]} 44... Nxa4 {[%clk 0:00:08.2]} 45. Bxa4 {[%clk 0:00:05.5]} 45... Kg8
{[%clk 0:00:08.3]} 46. f3 {[%clk 0:00:05.7]} 46... Bf5 {[%clk 0:00:06.4]} 47.
Kf2 {[%clk 0:00:05.6]} 47... Kf8 {[%clk 0:00:06.6]} 48. Bb6 {[%clk 0:00:05]}
48... Ke7 {[%clk 0:00:06.4]} 49. Ke3 {[%clk 0:00:05.6]} 49... Kd6 {[%clk
0:00:06.3]} 50. Bb5 {[%clk 0:00:05.6]} 50... Bc5+ {[%clk 0:00:06.3]} 51. Bxc5+
{[%clk 0:00:04.9]} 51... Kxc5 {[%clk 0:00:07.1]} 52. f4 {[%clk 0:00:05.6]} 52...
exf4+ {[%clk 0:00:05]} 53. Kxf4 {[%clk 0:00:06.5]} 53... Be6 {[%clk 0:00:03]}
54. h4 {[%clk 0:00:05.6]} 54... Bxc4 {[%clk 0:00:01.9]} 55. Be8 {[%clk
0:00:06.5]} 55... Kd6 {[%clk 0:00:01]} 56. g3 {[%clk 0:00:07]} 56... Ke7 {[%clk
0:00:00.9]} 57. Ba4 {[%clk 0:00:07.9]} 57... Ke6 {[%clk 0:00:01.2]} 58. Bc2
{[%clk 0:00:08.4]} 1-0

[Event "*** Titled Tuesday Blitz"]
[Site "Chess.com"]
[Date "2021.02.16"]
[Round "10"]
[White "JoliyRoger"]
[Black "Ajedrez_con_German"]
[Result "1/2-1/2"]
[WhiteElo "2425"]
[BlackElo "2582"]
[TimeControl "180+1"]
[EndTime "12:00:37 PST"]
[Termination "Game drawn - timeout vs insufficient material"]

1. Nf3 {[%clk 0:03:00.9]} 1... e6 {[%clk 0:02:59]} 2. c4 {[%clk 0:03:00.9]} 2...
Nf6 {[%clk 0:02:58.3]} 3. d4 {[%clk 0:03:00.8]} 3... Bb4+ {[%clk 0:02:57.5]} 4.
Bd2 {[%clk 0:03:00.8]} 4... Qe7 {[%clk 0:02:57.3]} 5. g3 {[%clk 0:02:59.8]} 5...
O-O {[%clk 0:02:57]} 6. Bg2 {[%clk 0:03:00.3]} 6... Nc6 {[%clk 0:02:55.7]} 7.
O-O {[%clk 0:03:00.4]} 7... Bxd2 {[%clk 0:02:56]} 8. Nbxd2 {[%clk 0:03:00.3]}
8... d6 {[%clk 0:02:56.5]} 9. e4 {[%clk 0:02:59.3]} 9... e5 {[%clk 0:02:56.8]}
10. d5 {[%clk 0:03:00]} 10... Nb8 {[%clk 0:02:54]} 11. h3 {[%clk 0:03:00.4]}
11... a5 {[%clk 0:02:51.7]} 12. Ne1 {[%clk 0:02:59.8]} 12... Na6 {[%clk
0:02:51.7]} 13. Nd3 {[%clk 0:02:59.9]} 13... Nd7 {[%clk 0:02:51.5]} 14. f4
{[%clk 0:02:24.8]} 14... exf4 {[%clk 0:02:51.6]} 15. gxf4 {[%clk 0:02:24.1]}
15... Ndc5 {[%clk 0:02:51.7]} 16. Nxc5 {[%clk 0:02:18.2]} 16... Nxc5 {[%clk
0:02:51.5]} 17. Qe2 {[%clk 0:02:18.7]} 17... Re8 {[%clk 0:02:43.6]} 18. Rae1
{[%clk 0:02:19]} 18... f6 {[%clk 0:02:35]} 19. Qe3 {[%clk 0:02:04.8]} 19... Ra6
{[%clk 0:02:33]} 20. Qc3 {[%clk 0:01:57.5]} 20... Rb6 {[%clk 0:02:32.3]} 21. Re3
{[%clk 0:01:53]} 21... Bd7 {[%clk 0:01:59.9]} 22. Rfe1 {[%clk 0:01:52.1]} 22...
Na4 {[%clk 0:01:52.7]} 23. Qxa5 {[%clk 0:01:41.8]} 23... Nxb2 {[%clk 0:01:49]}
24. Qc3 {[%clk 0:00:57.8]} 24... Na4 {[%clk 0:01:47.1]} 25. Qd4 {[%clk
0:00:58.3]} 25... Qf8 {[%clk 0:01:39.1]} 26. Nf3 {[%clk 0:00:47.1]} 26... c5
{[%clk 0:01:27.2]} 27. Qd2 {[%clk 0:00:38]} 27... Nb2 {[%clk 0:01:10.3]} 28. Bf1
{[%clk 0:00:23.7]} 28... Ra8 {[%clk 0:01:04.4]} 29. e5 {[%clk 0:00:21.7]} 29...
Rxa2 {[%clk 0:00:59.7]} 30. e6 {[%clk 0:00:20.5]} 30... Be8 {[%clk 0:00:57.1]}
31. Qg2 {[%clk 0:00:19.8]} 31... Rba6 {[%clk 0:00:49.6]} 32. R3e2 {[%clk
0:00:18.6]} 32... Nd3 {[%clk 0:00:34.3]} 33. Rxa2 {[%clk 0:00:16.3]} 33... Nxe1
{[%clk 0:00:34.2]} 34. Nxe1 {[%clk 0:00:16.8]} 34... Qe7 {[%clk 0:00:32.5]} 35.
Re2 {[%clk 0:00:13.7]} 35... Qc7 {[%clk 0:00:29.6]} 36. f5 {[%clk 0:00:13.6]}
36... b5 {[%clk 0:00:26.8]} 37. Re3 {[%clk 0:00:14.1]} 37... bxc4 {[%clk
0:00:25.7]} 38. Bxc4 {[%clk 0:00:13.6]} 38... Ra4 {[%clk 0:00:26.1]} 39. Bb3
{[%clk 0:00:12.5]} 39... Rb4 {[%clk 0:00:26.1]} 40. Rg3 {[%clk 0:00:12.9]} 40...
Qb7 {[%clk 0:00:25.6]} 41. Bc2 {[%clk 0:00:13.1]} 41... c4 {[%clk 0:00:24.3]}
42. Nf3 {[%clk 0:00:13]} 42... Rb2 {[%clk 0:00:22.7]} 43. Kh2 {[%clk 0:00:13.1]}
43... c3 {[%clk 0:00:22.7]} 44. Ne1 {[%clk 0:00:13.4]} 44... Ba4 {[%clk
0:00:20.5]} 45. h4 {[%clk 0:00:13.3]} 45... Bxc2 {[%clk 0:00:20.2]} 46. Nxc2
{[%clk 0:00:13.9]} 46... Kf8 {[%clk 0:00:16.5]} 47. h5 {[%clk 0:00:13.4]} 47...
h6 {[%clk 0:00:17.1]} 48. Qe2 {[%clk 0:00:12.5]} 48... Rb5 {[%clk 0:00:15.7]}
49. Rg2 {[%clk 0:00:13]} 49... Qxd5 {[%clk 0:00:14.7]} 50. Qg4 {[%clk
0:00:13.5]} 50... Qe5+ {[%clk 0:00:14]} 51. Kh3 {[%clk 0:00:13.9]} 51... Qxf5
{[%clk 0:00:14.4]} 52. Qxf5 {[%clk 0:00:14.1]} 52... Rxf5 {[%clk 0:00:15.3]} 53.
Rg3 {[%clk 0:00:14.6]} 53... Rxh5+ {[%clk 0:00:15.4]} 54. Kg2 {[%clk 0:00:14.3]}
54... Rg5 {[%clk 0:00:15.3]} 55. Rxg5 {[%clk 0:00:14.5]} 55... hxg5 {[%clk
0:00:15.6]} 56. Kf3 {[%clk 0:00:15]} 56... Ke7 {[%clk 0:00:15.8]} 57. Nd4 {[%clk
0:00:15.5]} 57... c2 {[%clk 0:00:15.5]} 58. Nxc2 {[%clk 0:00:15.8]} 58... Kxe6
{[%clk 0:00:16]} 59. Nd4+ {[%clk 0:00:16.7]} 59... Ke5 {[%clk 0:00:16.2]} 60.
Nc6+ {[%clk 0:00:17]} 60... Ke6 {[%clk 0:00:16.3]} 61. Nd8+ {[%clk 0:00:17.3]}
61... Ke7 {[%clk 0:00:15.2]} 62. Nb7 {[%clk 0:00:17.7]} 62... g6 {[%clk
0:00:14.9]} 63. Na5 {[%clk 0:00:17.1]} 63... f5 {[%clk 0:00:13.7]} 64. Nc6+
{[%clk 0:00:17.5]} 64... Ke6 {[%clk 0:00:13.9]} 65. Nd8+ {[%clk 0:00:18.2]}
65... Kf6 {[%clk 0:00:13.4]} 66. Kg3 {[%clk 0:00:17.8]} 66... g4 {[%clk
0:00:13.2]} 67. Nc6 {[%clk 0:00:18.4]} 67... g5 {[%clk 0:00:12.3]} 68. Nd4
{[%clk 0:00:18.3]} 68... Ke5 {[%clk 0:00:12.6]} 69. Nc6+ {[%clk 0:00:18.9]}
69... Ke6 {[%clk 0:00:12.5]} 70. Nd4+ {[%clk 0:00:18.3]} 70... Kd5 {[%clk
0:00:13]} 71. Nxf5 {[%clk 0:00:18.4]} 1/2-1/2

[Event "*** Titled Tuesday Blitz"]
[Site "Chess.com"]
[Date "2021.02.16"]
[Round "10"]
[White "swisspower96"]
[Black "Msb2"]
[Result "1-0"]
[WhiteElo "2675"]
[BlackElo "2854"]
[TimeControl "180+1"]
[EndTime "12:00:50 PST"]
[Termination "swisspower96 won by resignation"]

1. d4 {[%clk 0:03:00.9]} 1... d5 {[%clk 0:02:59.4]} 2. c4 {[%clk 0:03:01.2]}
2... e6 {[%clk 0:02:59.4]} 3. Nc3 {[%clk 0:03:01.8]} 3... Nf6 {[%clk 0:02:59.5]}
4. cxd5 {[%clk 0:03:00.2]} 4... exd5 {[%clk 0:03:00.4]} 5. Bg5 {[%clk
0:03:00.7]} 5... c6 {[%clk 0:03:00.7]} 6. e3 {[%clk 0:02:59.6]} 6... h6 {[%clk
0:03:01.3]} 7. Bh4 {[%clk 0:02:59.2]} 7... Bf5 {[%clk 0:03:00.3]} 8. Qf3 {[%clk
0:02:58.1]} 8... Be6 {[%clk 0:03:00.9]} 9. Bxf6 {[%clk 0:02:58]} 9... Qxf6
{[%clk 0:03:01.8]} 10. Qxf6 {[%clk 0:02:58.4]} 10... gxf6 {[%clk 0:03:02.7]} 11.
Bd3 {[%clk 0:02:56.8]} 11... a5 {[%clk 0:03:03.3]} 12. Nge2 {[%clk 0:02:47.3]}
12... a4 {[%clk 0:03:01.6]} 13. Nf4 {[%clk 0:02:46.1]} 13... Nd7 {[%clk
0:02:56.2]} 14. f3 {[%clk 0:02:41.4]} 14... Bd6 {[%clk 0:02:50.4]} 15. g4 {[%clk
0:02:38.7]} 15... a3 {[%clk 0:02:06.5]} 16. b3 {[%clk 0:02:38.2]} 16... Bb4
{[%clk 0:02:06.6]} 17. Rc1 {[%clk 0:02:36.6]} 17... Nb8 {[%clk 0:01:47.4]} 18.
Kf2 {[%clk 0:02:27.7]} 18... Na6 {[%clk 0:01:46.8]} 19. Nce2 {[%clk 0:02:27.8]}
19... Bd6 {[%clk 0:01:44.4]} 20. Bb1 {[%clk 0:02:24.3]} 20... Nb4 {[%clk
0:01:43.1]} 21. Ng3 {[%clk 0:02:24.5]} 21... Ke7 {[%clk 0:01:36.4]} 22. Nfh5
{[%clk 0:02:16.2]} 22... Rhc8 {[%clk 0:01:23.7]} 23. Ng7 {[%clk 0:02:04.9]}
23... Kd7 {[%clk 0:01:22.9]} 24. N3f5 {[%clk 0:02:01.7]} 24... c5 {[%clk
0:00:58.6]} 25. Nxd6 {[%clk 0:01:38.7]} 25... Kxd6 {[%clk 0:00:59.5]} 26. dxc5+
{[%clk 0:01:39.4]} 26... Rxc5 {[%clk 0:01:00.2]} 27. Rxc5 {[%clk 0:01:40.1]}
27... Kxc5 {[%clk 0:01:01.1]} 28. Nh5 {[%clk 0:01:40.7]} 28... Kd6 {[%clk
0:00:59.9]} 29. Rc1 {[%clk 0:01:37.9]} 29... d4 {[%clk 0:00:58.9]} 30. Nxf6
{[%clk 0:01:31.5]} 30... d3 {[%clk 0:00:17.4]} 31. Ne4+ {[%clk 0:01:19.7]} 31...
Ke7 {[%clk 0:00:17.7]} 32. Ke1 {[%clk 0:01:18.2]} 32... Bxb3 {[%clk 0:00:15.5]}
33. Rc7+ {[%clk 0:01:15.5]} 33... Kf8 {[%clk 0:00:13.8]} 34. Rxb7 {[%clk
0:01:06.8]} 34... Nxa2 {[%clk 0:00:08.7]} 35. Rxb3 {[%clk 0:01:00.9]} 35... Nc1
{[%clk 0:00:09.3]} 36. Rc3 {[%clk 0:00:55.9]} 36... a2 {[%clk 0:00:06.7]} 37.
Bxa2 {[%clk 0:00:56.2]} 37... Nxa2 {[%clk 0:00:06.7]} 38. Rxd3 {[%clk
0:00:56.7]} 38... Nb4 {[%clk 0:00:06.7]} 39. Rd2 {[%clk 0:00:56.5]} 39... Ra3
{[%clk 0:00:05.7]} 40. Kf2 {[%clk 0:00:56.2]} 40... Ke7 {[%clk 0:00:06.3]} 41.
Ng3 {[%clk 0:00:55.9]} 41... Nd3+ {[%clk 0:00:06.6]} 42. Kg2 {[%clk 0:00:55.3]}
42... Ne5 {[%clk 0:00:05.7]} 43. Nf5+ {[%clk 0:00:54.5]} 43... Ke8 {[%clk
0:00:06.3]} 44. h3 {[%clk 0:00:50.7]} 44... Nc4 {[%clk 0:00:06.3]} 45. Rd4
{[%clk 0:00:42.7]} 45... Ra2+ {[%clk 0:00:06.5]} 46. Kg3 {[%clk 0:00:42.9]}
46... Nd2 {[%clk 0:00:07.4]} 47. Kf4 {[%clk 0:00:40.8]} 47... Nb3 {[%clk
0:00:04.9]} 48. Rd6 {[%clk 0:00:38.6]} 48... Nc5 {[%clk 0:00:05]} 49. Rxh6
{[%clk 0:00:37.6]} 49... Ne6+ {[%clk 0:00:04.7]} 50. Kg3 {[%clk 0:00:38.1]}
50... Ra3 {[%clk 0:00:04.6]} 51. h4 {[%clk 0:00:37.7]} 51... Nc5 {[%clk
0:00:03.2]} 52. h5 {[%clk 0:00:36.6]} 52... Nd3 {[%clk 0:00:03.7]} 53. Rd6
{[%clk 0:00:35.2]} 53... Ne5 {[%clk 0:00:03.7]} 54. h6 {[%clk 0:00:34.4]} 54...
Ra1 {[%clk 0:00:03]} 55. h7 {[%clk 0:00:33.5]} 55... Rh1 {[%clk 0:00:03.6]} 56.
Rh6 {[%clk 0:00:33.7]} 56... Rxh6 {[%clk 0:00:02.9]} 57. Nxh6 {[%clk 0:00:34.6]}
57... Ng6 {[%clk 0:00:03.7]} 58. f4 {[%clk 0:00:32.9]} 58... Kf8 {[%clk
0:00:03.9]} 59. f5 {[%clk 0:00:33.3]} 59... Nh8 {[%clk 0:00:04.5]} 60. f6 {[%clk
0:00:33.8]} 60... Ke8 {[%clk 0:00:05.1]} 61. Nf5 {[%clk 0:00:33.2]} 61... Kd7
{[%clk 0:00:05.1]} 62. g5 {[%clk 0:00:30.8]} 62... Ke6 {[%clk 0:00:06]} 63. Kg4
{[%clk 0:00:31.4]} 63... Ng6 {[%clk 0:00:06.1]} 64. e4 {[%clk 0:00:30]} 64...
Ke5 {[%clk 0:00:06.1]} 65. Nh6 {[%clk 0:00:28.2]} 65... Ke6 {[%clk 0:00:06.5]}
66. Kh5 {[%clk 0:00:17.1]} 66... Nf4+ {[%clk 0:00:06.9]} 67. Kh4 {[%clk
0:00:16.9]} 67... Ng6+ {[%clk 0:00:07.8]} 68. Kg4 {[%clk 0:00:17.6]} 68... Nh8
{[%clk 0:00:05.9]} 69. Nf5 {[%clk 0:00:15.3]} 69... Ng6 {[%clk 0:00:05.9]} 70.
Kh5 {[%clk 0:00:15.7]} 70... Ke5 {[%clk 0:00:04.2]} 71. Kh6 {[%clk 0:00:15.5]}
71... Kxe4 {[%clk 0:00:04]} 72. Nd6+ {[%clk 0:00:16.3]} 72... Kf4 {[%clk
0:00:02.9]} 73. Nxf7 {[%clk 0:00:16.9]} 73... Nh4 {[%clk 0:00:02.8]} 74. h8=Q
{[%clk 0:00:15.4]} 74... Nf5+ {[%clk 0:00:03.7]} 75. Kg6 {[%clk 0:00:15.1]}
75... Ng3 {[%clk 0:00:03.9]} 76. Qh2 {[%clk 0:00:14.7]} 76... Kg4 {[%clk
0:00:04.8]} 77. Qxg3+ {[%clk 0:00:15.1]} 77... Kxg3 {[%clk 0:00:05.5]} 78. Kf5
{[%clk 0:00:15.7]} 1-0

[Event "*** Titled Tuesday Blitz"]
[Site "Chess.com"]
[Date "2021.02.16"]
[Round "10"]
[White "WPWPWP-2015"]
[Black "Chessbard1972"]
[Result "1-0"]
[WhiteElo "2475"]
[BlackElo "2342"]
[TimeControl "180+1"]
[EndTime "12:00:51 PST"]
[Termination "WPWPWP-2015 won on time"]

1. d4 {[%clk 0:02:53.3]} 1... Nf6 {[%clk 0:02:57.3]} 2. c4 {[%clk 0:02:46.1]}
2... g6 {[%clk 0:02:54.7]} 3. h4 {[%clk 0:02:43.7]} 3... h5 {[%clk 0:02:51.9]}
4. Nc3 {[%clk 0:02:41.3]} 4... Bg7 {[%clk 0:02:51.4]} 5. e4 {[%clk 0:02:40.9]}
5... d6 {[%clk 0:02:51.5]} 6. Bd3 {[%clk 0:02:38.9]} 6... c5 {[%clk 0:02:51]} 7.
d5 {[%clk 0:02:38.6]} 7... O-O {[%clk 0:02:50.9]} 8. Nge2 {[%clk 0:02:36.7]}
8... e6 {[%clk 0:02:51]} 9. f3 {[%clk 0:02:35.4]} 9... exd5 {[%clk 0:02:51]} 10.
cxd5 {[%clk 0:02:35.1]} 10... a6 {[%clk 0:02:51.2]} 11. Bg5 {[%clk 0:02:34.1]}
11... Nbd7 {[%clk 0:02:49.8]} 12. Qd2 {[%clk 0:02:31.2]} 12... Re8 {[%clk
0:02:49]} 13. O-O-O {[%clk 0:02:30.3]} 13... b5 {[%clk 0:02:48.6]} 14. g4 {[%clk
0:02:27.5]} 14... Qa5 {[%clk 0:02:45]} 15. gxh5 {[%clk 0:02:15.9]} 15... Nxh5
{[%clk 0:02:39]} 16. Nf4 {[%clk 0:01:59.3]} 16... Nxf4 {[%clk 0:02:38.2]} 17.
Bxf4 {[%clk 0:01:53.9]} 17... b4 {[%clk 0:02:32.7]} 18. Ne2 {[%clk 0:01:43.3]}
18... Qxa2 {[%clk 0:02:32.2]} 19. h5 {[%clk 0:01:38.6]} 19... Ne5 {[%clk
0:02:28.9]} 20. Bb1 {[%clk 0:01:36.4]} 20... Qc4+ {[%clk 0:02:24.1]} 21. Qc2
{[%clk 0:01:30.9]} 21... Qxc2+ {[%clk 0:02:22]} 22. Bxc2 {[%clk 0:01:26.9]}
22... Nxf3 {[%clk 0:02:16.2]} 23. hxg6 {[%clk 0:01:25]} 23... fxg6 {[%clk
0:02:15.9]} 24. Bxd6 {[%clk 0:01:23.2]} 24... Bg4 {[%clk 0:02:08.8]} 25. Nf4
{[%clk 0:01:15.9]} 25... Rad8 {[%clk 0:01:58.4]} 26. Bxc5 {[%clk 0:01:13.3]}
26... b3 {[%clk 0:01:52.9]} 27. Bxb3 {[%clk 0:01:09.9]} 27... Rb8 {[%clk
0:01:48.4]} 28. Bc4 {[%clk 0:01:06.9]} 28... Ne5 {[%clk 0:01:45.9]} 29. Ba2
{[%clk 0:01:00.9]} 29... Bxd1 {[%clk 0:01:38.6]} 30. d6+ {[%clk 0:00:59.8]}
30... Bb3 {[%clk 0:01:37.9]} 31. Bxb3+ {[%clk 0:00:51.4]} 31... Rxb3 {[%clk
0:01:37.3]} 32. Kc2 {[%clk 0:00:38.6]} 32... Rb5 {[%clk 0:01:30.7]} 33. b4
{[%clk 0:00:28.3]} 33... a5 {[%clk 0:01:30.3]} 34. Nd5 {[%clk 0:00:23.3]} 34...
axb4 {[%clk 0:01:18.9]} 35. Bxb4 {[%clk 0:00:22]} 35... Rc8+ {[%clk 0:01:13.5]}
36. Kb3 {[%clk 0:00:21.3]} 36... Kf7 {[%clk 0:01:09.6]} 37. Rf1+ {[%clk
0:00:19.9]} 37... Ke6 {[%clk 0:01:05.2]} 38. Nc7+ {[%clk 0:00:19.5]} 38... Kd7
{[%clk 0:00:55.3]} 39. Nxb5 {[%clk 0:00:18.7]} 39... Rb8 {[%clk 0:00:49.4]} 40.
Ka4 {[%clk 0:00:17.1]} 40... Bh6 {[%clk 0:00:45.2]} 41. Rh1 {[%clk 0:00:09.2]}
41... Bg5 {[%clk 0:00:32.5]} 42. Rh7+ {[%clk 0:00:08.6]} 42... Ke6 {[%clk
0:00:28.4]} 43. Nc7+ {[%clk 0:00:07.9]} 43... Kf6 {[%clk 0:00:28.5]} 44. Nd5+
{[%clk 0:00:07.8]} 44... Ke6 {[%clk 0:00:27.3]} 45. Nc7+ {[%clk 0:00:07.8]}
45... Kf6 {[%clk 0:00:26.4]} 46. d7 {[%clk 0:00:07.2]} 46... Nxd7 {[%clk
0:00:19.7]} 47. Rxd7 {[%clk 0:00:06.1]} 47... Be3 {[%clk 0:00:17.5]} 48. Be7+
{[%clk 0:00:04.4]} 48... Ke5 {[%clk 0:00:16.3]} 49. Nd5 {[%clk 0:00:03.9]} 49...
Kxe4 {[%clk 0:00:15.2]} 50. Nxe3 {[%clk 0:00:02.6]} 50... Kxe3 {[%clk
0:00:15.5]} 51. Rd6 {[%clk 0:00:02.5]} 51... Ra8+ {[%clk 0:00:13.9]} 52. Kb5
{[%clk 0:00:02.1]} 52... Re8 {[%clk 0:00:13.6]} 53. Bg5+ {[%clk 0:00:01.7]}
53... Ke4 {[%clk 0:00:11.2]} 54. Rxg6 {[%clk 0:00:01.7]} 54... Kf5 {[%clk
0:00:11.5]} 55. Rg7 {[%clk 0:00:01.9]} 55... Re5+ {[%clk 0:00:10.8]} 56. Kc6
{[%clk 0:00:01.7]} 56... Ke4 {[%clk 0:00:11.1]} 57. Bd8 {[%clk 0:00:01.1]} 57...
Rf5 {[%clk 0:00:11.2]} 58. Kc7 {[%clk 0:00:01.5]} 58... Kf3 {[%clk 0:00:11.5]}
59. Re7 {[%clk 0:00:01.8]} 59... Rf8 {[%clk 0:00:10.9]} 60. Re6 {[%clk
0:00:02.3]} 60... Rf7+ {[%clk 0:00:09.5]} 61. Kc8 {[%clk 0:00:02.9]} 61... Rf4
{[%clk 0:00:08.7]} 62. Ra6 {[%clk 0:00:03.5]} 62... Rc4+ {[%clk 0:00:08.4]} 63.
Bc7 {[%clk 0:00:04.2]} 63... Ke4 {[%clk 0:00:08]} 64. Kd7 {[%clk 0:00:04.8]}
64... Kd5 {[%clk 0:00:07.8]} 65. Bd6 {[%clk 0:00:05.3]} 65... Ke4 {[%clk
0:00:07]} 66. Ra5 {[%clk 0:00:05.9]} 66... Rd4 {[%clk 0:00:06.7]} 67. Rh5 {[%clk
0:00:06.5]} 67... Kd3 {[%clk 0:00:06.3]} 68. Ke6 {[%clk 0:00:06.6]} 68... Kc4
{[%clk 0:00:06.2]} 69. Be5 {[%clk 0:00:06.3]} 69... Rd1 {[%clk 0:00:04.3]} 70.
Rh2 {[%clk 0:00:06.4]} 70... Rc1 {[%clk 0:00:03]} 71. Rh8 {[%clk 0:00:06.2]}
71... Rf1 {[%clk 0:00:01.6]} 72. Rc8+ {[%clk 0:00:06]} 72... Kb5 {[%clk
0:00:01.6]} 73. Kd5 {[%clk 0:00:05.9]} 73... Rd1+ {[%clk 0:00:01.4]} 74. Bd4
{[%clk 0:00:06.2]} 1-0